[Event "EYCC 2017"]
[Site "Mamaia"]
[Date "2017.09.12"]
[Round "7"]
[White "Lomandong Noela-Joyce"]
[Black "Kucharska, Honorata"]
[Result "1/2-1/2"]
[ECO "A05"]
[WhiteElo "2040"]
[BlackElo "1917"]
[Annotator "NA RC"]
[PlyCount "72"]
[EventDate "2017.??.??"]
[EventType "swiss"]
[EventCountry "ROU"]
[SourceTitle "playchess.com"]
[Source "ChessBase"]
[SourceQuality "1"]
[TimeControl "40/5400+30:1800+30"]

1. Nf3 {[%emt 0:00:00]} Nf6 {[%emt 0:00:09]} 2. d4 {[%emt 0:00:00]} d6 {[%emt 0:00:06]} 3. Bf4 {[%emt 0:01:24]} Nbd7 {[%emt 0:02:13]} 4. h3 {[%emt 0:00:06]} g6 {[%emt 0:00:25]} 5. e3 {[%emt 0:00:05]} Bg7 {[%emt 0:00:08]} 6. Be2 {[%emt 0:00:04]} O-O {[%emt 0:00:23]} 7. O-O {[%emt 0:00:05]} b6 {[%emt 0:07:12]} 8. c4 {[%emt 0:03:24]} Bb7 {[%emt 0:01:05]} 9. Nc3 {[%emt 0:05:44]} Re8 {[%emt 0:00:47]} 10. Rc1 {[%emt 0:04:31]} e5 {[%emt 0:03:50]} 11. Bh2 {[%emt 0:01:35]} exd4 {[%emt 0:05:55]} 12. exd4 {[%emt 0:02:26]} Ne4 {[%emt 0:01:08]} 13. Nxe4 {[%emt 0:22:36]} Bxe4 {[%emt 0:00:10]} 14. Qd2 {[%emt 0:02:02]} Rb8 {[%emt 0:10:06]} 15. Bf4 {[%emt 0:07:22]} Nf8 {[%emt 0:06:42]} 16. Bg5 {[%emt 0:10:31]} Qd7 {[%emt 0:03:56]} 17. d5 {[%emt 0:05:40]} f6 {[%emt 0:07:29]} 18. Be3 {[%emt 0:00:59]} Bxf3 {[%emt 0:00:51]} 19. Bxf3 {[%emt 0:00:07]} a5 {[%emt 0:01:44]} 20. a3 {[%emt 0:04:02]} a4 {[%emt 0:06:21]} 21. Qb4 {[%emt 0:05:35]} Ra8 {[%emt 0:02:33]} 22. Rfe1 {[%emt 0:00:55]} f5 {[%emt 0:01:23]} 23. Kh1 {[%emt 0:07:19]} h6 {[%emt 0:02:37]} 24. Qd2 {[%emt 0:00:58]} Kh7 {[%emt 0:00:58]} 25. Rg1 {[%emt 0:02:13]} g5 {[%emt 0:02:41]} 26. Bh5 {[%emt 0:03:40]} Ng6 {[%emt 0:01:36]} 27. Rce1 {[%emt 0:04:27]} f4 {[%emt 0:07:41]} 28. Bd4 {[%emt 0:00:15]} Qf7 {[%emt 0:01:56]} 29. Bxg7 {[%emt 0:00:31]} Kxg7 {[%emt 0:00:19]} 30. Qc3+ {[%emt 0:03:44]} Qf6 {[%emt 0:00:43]} 31. Qc2 {[%emt 0:00:48]} Rxe1 {[%emt 0:00:48]} 32. Rxe1 {[%emt 0:00:18]} Ne5 {[%emt 0:00:37]} 33. Qe2 {[%emt 0:01:00]} Rf8 {[%emt 0:02:01]} 34. Qe4 {[%emt 0:01:49]} Ra8 {[%emt 0:00:39]} 35. Qe2 {[%emt 0:00:05]} Rf8 {[%emt 0:00:43]} 36. Qe4 {[%emt 0:00:06]} Ra8 {[%emt 0:01:07]} 1/2-1/2

[Event "EYCC 2017"]
[Site "Mamaia"]
[Date "2017.09.12"]
[Round "7"]
[White "Mironenko, Galina"]
[Black "Yakimova, Mariya"]
[Result "1-0"]
[ECO "E17"]
[WhiteElo "2035"]
[BlackElo "1736"]
[Annotator "NA RC"]
[PlyCount "79"]
[EventDate "2017.??.??"]
[EventType "swiss"]
[EventCountry "ROU"]
[SourceTitle "playchess.com"]
[Source "ChessBase"]
[SourceQuality "1"]
[TimeControl "40/5400+30:1800+30"]

1. Nf3 {[%emt 0:00:00]} Nf6 {[%emt 0:00:04]} 2. c4 {[%emt 0:00:00]} e6 {[%emt 0:00:05]} 3. g3 {[%emt 0:00:09]} b6 {[%emt 0:00:06]} 4. Bg2 {[%emt 0:00:07]} Bb7 {[%emt 0:00:04]} 5. d4 {[%emt 0:00:48]} Be7 {[%emt 0:00:17]} 6. O-O {[%emt 0:00:11]} O-O {[%emt 0:00:07]} 7. b3 {[%emt 0:00:41]} d6 {[%emt 0:05:10]} 8. Bb2 {[%emt 0:00:45]} Nbd7 {[%emt 0:01:50]} 9. Nbd2 {[%emt 0:04:00]} Ne4 {[%emt 0:03:22]} 10. Nxe4 {[%emt 0:07:29]} Bxe4 {[%emt 0:00:07]} 11. d5 {[%emt 0:05:09]} Bxf3 {[%emt 0:11:18]} 12. Bxf3 {[%emt 0:00:28]} e5 {[%emt 0:00:17]} 13. e4 {[%emt 0:01:46]} g6 {[%emt 0:11:39]} 14. Bg2 {[%emt 0:04:02]} f5 {[%emt 0:13:45]} 15. exf5 {[%emt 0:04:18]} gxf5 {[%emt 0:00:30]} 16. f4 {[%emt 0:17:29]} e4 {[%emt 0:09:14]} 17. g4 {[%emt 0:24:30]} Bf6 {[%emt 0:04:29]} 18. Bxf6 {[%emt 0:02:13]} Qxf6 {[%emt 0:01:10]} 19. g5 {[%emt 0:01:25]} Qg7 {[%emt 0:12:12]} 20. Qd2 {[%emt 0:08:32]} Nc5 {[%emt 0:04:28]} 21. Rae1 {[%emt 0:03:45]} Nd3 {[%emt 0:03:26]} 22. Re3 {[%emt 0:01:08]} Qd4 {[%emt 0:01:05]} 23. h4 {[%emt 0:02:44]} a5 {[%emt 0:06:10]} 24. a4 {[%emt 0:03:01]} Rae8 {[%emt 0:02:54]} 25. Kh2 {[%emt 0:00:57]} Rf7 {[%emt 0:04:34]} 26. Bh3 {[%emt 0:01:46]} Kh8 {[%emt 0:03:35]} 27. Rfe1 {[%emt 0:01:26]} Ref8 {[%emt 0:01:28]} 28. Bf1 {[%emt 0:01:47]} Qg7 {[%emt 0:00:31]} 29. Bxd3 {[%emt 0:00:21]} exd3 {[%emt 0:00:04]} 30. Qxd3 {[%emt 0:00:17]} Qb2+ {[%emt 0:00:43]} 31. R3e2 {[%emt 0:00:52]} Qg7 {[%emt 0:00:19]} 32. Re6 {[%emt 0:00:52]} Qb2+ {[%emt 0:00:43]} 33. R1e2 {[%emt 0:01:11]} Qc1 {[%emt 0:00:33]} 34. Qd4+ {[%emt 0:00:20]} Kg8 {[%emt 0:00:34]} 35. g6 {[%emt 0:01:06]} Rg7 {[%emt 0:00:26]} 36. Rg2 {[%emt 0:00:26]} h5 {[%emt 0:00:35]} 37. Rge2 {[%emt 0:00:35]} Qf1 {[%emt 0:00:28]} 38. Qf2 {[%emt 0:00:41]} Qb1 {[%emt 0:00:25]} 39. Qg3 {[%emt 0:00:20]} Qf1 {[%emt 0:00:29]} 40. Re1 {[%emt 0:00:00]} 1-0

[Event "EYCC 2017"]
[Site "Mamaia"]
[Date "2017.09.12"]
[Round "7"]
[White "Fiszer, Bartosz"]
[Black "Klimkowski, Jan"]
[Result "1/2-1/2"]
[ECO "B90"]
[WhiteElo "2009"]
[BlackElo "1761"]
[Annotator "NA RC"]
[PlyCount "78"]
[EventDate "2017.??.??"]
[EventType "swiss"]
[EventCountry "ROU"]
[SourceTitle "playchess.com"]
[Source "ChessBase"]
[SourceQuality "1"]
[TimeControl "40/5400+30:1800+30"]

1. e4 {[%emt 0:00:00]} c5 {[%emt 0:00:14]} 2. Nf3 {[%emt 0:00:00]} d6 {[%emt 0:00:17]} 3. d4 {[%emt 0:00:00]} cxd4 {[%emt 0:00:11]} 4. Nxd4 {[%emt 0:00:00]} Nf6 {[%emt 0:00:30]} 5. Nc3 {[%emt 0:00:00]} a6 {[%emt 0:00:12]} 6. Nb3 {[%emt 0:00:00]} g6 {[%emt 0:00:08] B90: Sicilian Najdorf: Unusual White 6th moves, 6 Be3 Ng4 and 6 Be3 e5} (6... e5 7. Bg5 Be7 8. Bxf6 Bxf6 9. Qd3 Be6 10. O-O-O Be7 11. Nd5 Bxd5 12. Qxd5 Qc7 13. Kb1 O-O 14. Na5 Nc6 15. Nc4 Rad8 {1-0 (50) Grischuk,A (2737)-Nepomniachtchi,I (2767) Doha 2016}) 7. Be2 {[%emt 0:00:31]} Bg7 {[%emt 0:00:22]} 8. Be3 {[%emt 0:00:07]} Nbd7 {[%emt 0:03:39]} 9. g4 $146 {[%emt 0:02:29]} ({Find the theoretical novelty and annotate with similar games:} 9. a4 b6 10. f4 Bb7 11. Bf3 Rc8 12. Bd4 e5 13. Bf2 Qe7 14. Qd3 exf4 {0-1 (50) Hinrichs,L (1877)-Schroeder,C (2184) Hamburg 2012}) 9... h5 {[%emt 0:01:31]} 10. g5 {[%emt 0:01:45]} Ng4 {[%emt 0:00:09]} 11. Bf4 {[%emt 0:17:41]} Nge5 {[%emt 0:08:51]} 12. a4 {[%emt 0:02:43]} Nb6 {[%emt 0:03:22]} 13. Bc1 {[%emt 0:03:28]} a5 {[%emt 0:12:42]} 14. Nd5 {[%emt 0:13:11]} Nxd5 {[%emt 0:02:13]} 15. Qxd5 {[%emt 0:01:14]} Bd7 {[%emt 0:03:13]} 16. Qxb7 {[%emt 0:01:45]} O-O {[%emt 0:02:45]} 17. Bb5 $2 {[%emt 0:15:38]} (17. Nd4 $17) 17... Rb8 {[%emt 0:07:11]} 18. Qa6 {[%emt 0:04:09]} Ra8 $2 {[%emt 0:15:53]} ({Lieber} 18... Bxb5 $19 19. axb5 Qc7) 19. Qb7 {[%emt 0:00:14]} Bg4 {[%emt 0:06:07]} 20. f4 $17 {[%emt 0:06:44]} Nf3+ {[%emt 0:06:45]} 21. Kf1 {[%emt 0:06:21]} Nd4 {[%emt 0:02:24]} 22. Nxd4 {[%emt 0:04:46]} Bxd4 {[%emt 0:00:07]} 23. Qd5 {[%emt 0:03:45]} e5 {[%emt 0:03:45]} 24. Qb3 {[%emt 0:02:03]} Qc7 {[%emt 0:05:58]} 25. Qd3 {[%emt 0:02:42]} d5 {[%emt 0:02:54]} 26. fxe5 {[%emt 0:02:06]} Qxe5 {[%emt 0:04:33]} 27. c3 {[%emt 0:01:01]} Bb6 {[%emt 0:00:26]} 28. Qxd5 {[%emt 0:07:52]} Qxd5 {[%emt 0:00:36]} 29. exd5 {[%emt 0:00:07]} Bf3 {[%emt 0:00:10]} 30. Rg1 {[%emt 0:00:17]} Bxg1 {[%emt 0:01:00]} 31. Kxg1 {[%emt 0:00:03]} Bxd5 {[%emt 0:00:57]} 32. c4 {[%emt 0:00:17]} Be4 {[%emt 0:01:33]} 33. Bd2 {[%emt 0:00:42]} Rfc8 {[%emt 0:01:18]} 34. Rc1 {[%emt 0:00:16]} Bc6 {[%emt 0:00:38]} 35. Be3 {[%emt 0:01:34]} Rab8 {[%emt 0:01:53]} 36. Bf4 {[%emt 0:00:41]} Ra8 {[%emt 0:00:53]} 37. Be3 {[%emt 0:00:08]} Rab8 {[%emt 0:00:36]} 38. Bf4 {[%emt 0:00:07]} Ra8 {[%emt 0:00:04]} 39. Be3 {[%emt 0:00:08]} Rab8 {[%emt 0:01:14]} 1/2-1/2

[Event "EYCC 2017"]
[Site "Mamaia"]
[Date "2017.09.12"]
[Round "7"]
[White "Weis, Olga"]
[Black "Janiashvili, Mariami"]
[Result "0-1"]
[ECO "A84"]
[WhiteElo "2005"]
[BlackElo "1875"]
[Annotator "NA RC"]
[PlyCount "52"]
[EventDate "2017.??.??"]
[EventType "swiss"]
[EventCountry "ROU"]
[SourceTitle "playchess.com"]
[Source "ChessBase"]
[SourceQuality "1"]
[TimeControl "40/5400+30:1800+30"]

1. d4 {[%emt 0:00:00]} e6 {[%emt 0:00:01]} 2. c4 {[%emt 0:00:00]} f5 {[%emt 0:00:03]} 3. Nc3 {[%emt 0:03:00]} Nf6 {[%emt 0:00:45]} 4. a3 {[%emt 0:03:24]} Be7 {[%emt 0:02:00]} 5. Bf4 {[%emt 0:01:17]} d6 {[%emt 0:00:25]} 6. e3 {[%emt 0:01:04]} O-O {[%emt 0:00:16]} 7. Bd3 {[%emt 0:06:18]} Nbd7 {[%emt 0:00:11]} 8. Bg3 {[%emt 0:01:42]} Qe8 {[%emt 0:02:41]} 9. Nge2 {[%emt 0:07:37]} Bd8 {[%emt 0:01:24]} 10. b4 {[%emt 0:04:54]} Nh5 {[%emt 0:04:18]} 11. Qc2 {[%emt 0:07:46]} Qf7 {[%emt 0:01:20]} 12. f4 {[%emt 0:05:42]} Ndf6 {[%emt 0:07:54]} 13. O-O {[%emt 0:10:53]} Ng4 {[%emt 0:02:32]} 14. Rf3 {[%emt 0:00:41]} g6 {[%emt 0:12:48]} 15. h3 {[%emt 0:06:55]} Nh6 {[%emt 0:03:38]} 16. e4 {[%emt 0:02:57]} Bd7 {[%emt 0:03:56]} 17. d5 {[%emt 0:06:14]} Bf6 {[%emt 0:04:31]} 18. Bh2 {[%emt 0:02:19]} exd5 {[%emt 0:03:38]} 19. cxd5 {[%emt 0:00:21]} Rae8 {[%emt 0:03:06]} 20. Re1 {[%emt 0:02:16]} Ng7 {[%emt 0:06:33]} 21. Nd1 {[%emt 0:01:55]} fxe4 {[%emt 0:01:34]} 22. Bxe4 {[%emt 0:00:06]} Bf5 {[%emt 0:00:54]} 23. Bxf5 {[%emt 0:01:42]} Nhxf5 {[%emt 0:00:28]} 24. Qd2 {[%emt 0:00:38]} Nd4 {[%emt 0:03:11]} 25. Re3 {[%emt 0:02:36]} Qxd5 {[%emt 0:02:54]} 26. Nec3 {[%emt 0:01:25]} Nf3+ {[%emt 0:00:45]} 0-1

[Event "EYCC 2017"]
[Site "Mamaia"]
[Date "2017.09.12"]
[Round "7"]
[White "Srdanovic, Jovana"]
[Black "Miroshnik, Ekaterina"]
[Result "1/2-1/2"]
[ECO "D00"]
[WhiteElo "1994"]
[BlackElo "2006"]
[Annotator "NA RC"]
[PlyCount "50"]
[EventDate "2017.??.??"]
[EventType "swiss"]
[EventCountry "ROU"]
[SourceTitle "playchess.com"]
[Source "ChessBase"]
[SourceQuality "1"]
[TimeControl "40/5400+30:1800+30"]

1. d4 {[%emt 0:00:00]} d5 {[%emt 0:00:04]} 2. Bf4 {[%emt 0:00:00]} Nf6 {[%emt 0:00:06]} 3. e3 {[%emt 0:00:00]} e6 {[%emt 0:00:03]} 4. Nd2 {[%emt 0:00:00]} c5 {[%emt 0:00:06]} 5. c3 {[%emt 0:00:03]} Nc6 {[%emt 0:00:04]} 6. Ngf3 {[%emt 0:00:11]} cxd4 {[%emt 0:00:27]} 7. exd4 {[%emt 0:00:11]} Nh5 {[%emt 0:00:21]} 8. Be5 {[%emt 0:06:05]} f6 {[%emt 0:00:14]} 9. Bg3 {[%emt 0:00:12]} Nxg3 {[%emt 0:00:49]} 10. hxg3 {[%emt 0:00:10]} g6 {[%emt 0:00:04]} 11. Bd3 {[%emt 0:14:18]} Bg7 {[%emt 0:00:32]} 12. Nf1 {[%emt 0:04:23]} e5 {[%emt 0:16:00]} 13. dxe5 {[%emt 0:01:52]} fxe5 {[%emt 0:04:17]} 14. Bc2 {[%emt 0:04:39]} Be6 {[%emt 0:05:08]} 15. Qe2 {[%emt 0:09:33]} Qf6 {[%emt 0:06:45]} 16. Ne3 {[%emt 0:05:10]} a6 {[%emt 0:07:39]} 17. Bb3 {[%emt 0:02:01]} Rd8 {[%emt 0:05:01]} 18. Rd1 {[%emt 0:00:42]} Ne7 {[%emt 0:01:33]} 19. O-O {[%emt 0:05:19]} O-O {[%emt 0:01:04]} 20. Rfe1 {[%emt 0:01:07]} h5 {[%emt 0:12:22]} 21. a4 {[%emt 0:16:58]} Kh8 {[%emt 0:08:36]} 22. Nd2 {[%emt 0:07:05]} Nc6 {[%emt 0:06:06]} 23. Nf3 {[%emt 0:03:56]} Ne7 {[%emt 0:03:21]} 24. Nd2 {[%emt 0:01:00]} Nc6 {[%emt 0:07:00]} 25. Nf3 {[%emt 0:00:33]} Ne7 {[%emt 0:00:05]} 1/2-1/2

[Event "EYCC 2017"]
[Site "Mamaia"]
[Date "2017.09.12"]
[Round "7"]
[White "Maurizzi, Marc Andria"]
[Black "Han, Yichen"]
[Result "1-0"]
[ECO "C45"]
[WhiteElo "1947"]
[BlackElo "1884"]
[Annotator "NA RC"]
[PlyCount "61"]
[EventDate "2017.??.??"]
[EventType "swiss"]
[EventCountry "ROU"]
[SourceTitle "playchess.com"]
[Source "ChessBase"]
[SourceQuality "1"]
[TimeControl "40/5400+30:1800+30"]

1. e4 e5 2. Nf3 Nc6 3. d4 exd4 4. Nxd4 Bc5 5. Nb3 Bb4+ 6. c3 Be7 7. f4 d6 8. Bd3 Nf6 9. O-O O-O 10. N1d2 d5 11. e5 Ne8 12. Nd4 f6 13. Nxc6 bxc6 14. Nf3 Bg4 15. h3 Bxf3 16. Rxf3 fxe5 17. fxe5 Rxf3 18. Qxf3 Bc5+ 19. Be3 Bxe3+ 20. Qxe3 Qe7 21. Rf1 g6 22. e6 Nd6 23. Re1 Nb7 24. Kh1 a5 25. Qg3 Nc5 26. Bc2 Re8 27. Bxg6 hxg6 28. Qxg6+ Qg7 29. Qxe8+ Kh7 30. Qh5+ Kg8 31. e7 1-0

[Event "EYCC 2017"]
[Site "Mamaia"]
[Date "2017.09.12"]
[Round "7"]
[White "Can, Isil"]
[Black "Dakic, Marta"]
[Result "1-0"]
[ECO "C41"]
[WhiteElo "1945"]
[BlackElo "1562"]
[Annotator "NA RC"]
[PlyCount "81"]
[EventDate "2017.??.??"]
[EventType "swiss"]
[EventCountry "ROU"]
[SourceTitle "playchess.com"]
[Source "ChessBase"]
[SourceQuality "1"]
[TimeControl "40/5400+30:1800+30"]

1. e4 e5 2. Nf3 d6 3. d4 exd4 4. Qxd4 Nc6 5. Bb5 Bd7 6. Bxc6 Bxc6 7. Nc3 Nf6 8. Bg5 Be7 9. O-O-O h6 {C62: Ruy Lopez: Steinitz Defence} (9... O-O 10. Rhe1 Re8 11. Qd2 Qd7 12. Nd4 h6 13. Bf4 Ng4 14. Nf5 Bf8 15. f3 Ne5 16. Qf2 b5 17. g4 b4 18. Ne2 a5 {0-1 (48) Sandipan,C (2579)-Bu,X (2714) Beijing 2008}) 10. Be3 O-O 11. h3 Re8 $146 ({Predecessor:} 11... Nd7 12. g4 Bf6 13. Qc4 Bxc3 14. bxc3 Qe7 15. Nd2 Qe6 16. Qxe6 fxe6 17. g5 {0-1 (42) Marguerettaz,D (2214)-Medancic,R (2223) Condino 2012}) 12. Nd2 Bf8 13. f3 g6 14. Nf1 Bg7 15. Qd2 Kh7 16. g4 Nd7 17. Ng3 Ne5 18. Qf2 Nc4 19. Bd4 Bxd4 20. Rxd4 Ne5 21. f4 Nd7 22. h4 Nc5 23. f5 (23. b4 $18 Ne6 24. Rd3) 23... Qe7 {[#]} (23... Qd7 $16) 24. g5 (24. b4 $1 $18) 24... h5 25. Rf1 Qf8 $2 (25... a5 $16) 26. Qe2 $2 (26. b4 $18) 26... Qe7 $2 {[#]} (26... Qg7 $16 27. f6 Qh8) 27. Nxh5 $1 Nd7 28. fxg6+ fxg6 29. Nf6+ Nxf6 30. gxf6 Qe5 31. Qc4 Rf8 32. Nd5 Rf7 33. Nb6 Raf8 34. Nd5 Bxd5 35. Rxd5 Qg3 36. h5 Qe3+ 37. Kb1 Kh6 38. hxg6 Kxg6 39. Rdf5 a6 40. e5 Qg3 41. Qe4 1-0

[Event "EYCC 2017"]
[Site "Mamaia"]
[Date "2017.09.12"]
[Round "7"]
[White "Wikar, Martyna"]
[Black "Zhurova, Anna"]
[Result "1-0"]
[ECO "A46"]
[WhiteElo "1943"]
[BlackElo "1864"]
[Annotator "NA RC"]
[PlyCount "87"]
[EventDate "2017.??.??"]
[EventType "swiss"]
[EventCountry "ROU"]
[SourceTitle "playchess.com"]
[Source "ChessBase"]
[SourceQuality "1"]
[TimeControl "40/5400+30:1800+30"]

1. d4 {[%emt 0:00:00]} Nf6 {[%emt 0:00:12]} 2. Nf3 {[%emt 0:00:00]} e6 {[%emt 0:03:02]} 3. Bf4 {[%emt 0:01:04]} b6 {[%emt 0:00:46]} 4. e3 {[%emt 0:01:08]} Bb7 {[%emt 0:00:35]} 5. Nbd2 {[%emt 0:01:55]} Be7 {[%emt 0:00:42]} 6. Bd3 {[%emt 0:00:46]} O-O {[%emt 0:00:30]} 7. O-O {[%emt 0:00:39]} d6 {[%emt 0:00:25]} 8. h3 {[%emt 0:00:57]} Nbd7 {[%emt 0:01:10]} 9. c3 {[%emt 0:06:11]} Re8 {[%emt 0:00:44]} 10. e4 {[%emt 0:02:06]} Bf8 {[%emt 0:01:21]} 11. e5 {[%emt 0:06:39]} dxe5 {[%emt 0:00:32]} 12. Nxe5 {[%emt 0:06:48]} Nxe5 {[%emt 0:00:21]} 13. Bxe5 {[%emt 0:00:56]} c5 {[%emt 0:01:46]} 14. Nf3 {[%emt 0:11:24]} cxd4 {[%emt 0:10:55]} 15. Bb5 {[%emt 0:11:52]} Nd7 {[%emt 0:12:12]} 16. Bxd4 {[%emt 0:08:52]} a6 {[%emt 0:00:44]} 17. Ba4 {[%emt 0:07:07]} b5 {[%emt 0:00:54]} 18. Bc2 {[%emt 0:00:01]} Qc7 {[%emt 0:09:57]} 19. Ng5 {[%emt 0:08:21]} g6 {[%emt 0:01:37]} 20. Qh5 {[%emt 0:07:39]} Qh2+ {[%emt 0:04:34]} 21. Kxh2 {[%emt 0:00:08]} Bd6+ 22. Kg1 {[%emt 0:01:15]} gxh5 {[%emt 0:00:04]} 23. Bxh7+ {[%emt 0:00:55]} Kf8 {[%emt 0:00:04]} 24. Be4 {[%emt 0:01:29]} Bxe4 {[%emt 0:00:33]} 25. Nxe4 {[%emt 0:00:04]} Be5 {[%emt 0:00:25]} 26. Rad1 {[%emt 0:01:25]} Bxd4 {[%emt 0:00:06]} 27. Rxd4 {[%emt 0:00:10]} Ne5 {[%emt 0:00:35]} 28. Nf6 {[%emt 0:05:13]} Red8 {[%emt 0:00:20]} 29. Rfd1 {[%emt 0:01:24]} Ke7 {[%emt 0:00:38]} 30. Nxh5 {[%emt 0:01:23]} Rg8 {[%emt 0:00:56]} 31. Ng3 {[%emt 0:00:31]} f5 {[%emt 0:01:02]} 32. Kf1 {[%emt 0:01:33]} Nc4 {[%emt 0:00:17]} 33. b3 {[%emt 0:03:48]} Ne3+ {[%emt 0:00:36]} 34. fxe3 {[%emt 0:00:01]} Rxg3 {[%emt 0:00:01]} 35. Rd7+ {[%emt 0:00:39]} Kf6 {[%emt 0:00:38]} 36. Kf2 {[%emt 0:01:00]} Rag8 {[%emt 0:00:12]} 37. Rg1 {[%emt 0:00:09]} f4 {[%emt 0:00:05]} 38. exf4 {[%emt 0:01:31]} Rxc3 {[%emt 0:00:12]} 39. Rd2 {[%emt 0:00:39]} Kf5 {[%emt 0:00:18]} 40. g3 {[%emt 0:00:00]} Rh8 {[%emt 0:01:30]} 41. Kg2 {[%emt 0:02:44]} Rg8 {[%emt 0:00:56]} 42. Kh2 {[%emt 0:01:19]} Ke4 {[%emt 0:00:12]} 43. Re2+ {[%emt 0:01:49]} Kf3 {[%emt 0:00:17]} 44. Rgg2 {[%emt 0:00:46]} 1-0

[Event "EYCC 2017"]
[Site "Mamaia"]
[Date "2017.09.12"]
[Round "7"]
[White "Sosa Suarez, Carla Cristina"]
[Black "Filippova, Darya"]
[Result "1-0"]
[ECO "B12"]
[WhiteElo "1930"]
[BlackElo "2046"]
[Annotator "NA RC"]
[PlyCount "91"]
[EventDate "2017.??.??"]
[EventType "swiss"]
[EventCountry "ROU"]
[SourceTitle "playchess.com"]
[Source "ChessBase"]
[SourceQuality "1"]
[TimeControl "40/5400+30:1800+30"]

1. e4 {[%emt 0:00:00]} c6 {[%emt 0:00:08]} 2. d4 {[%emt 0:00:00]} d5 {[%emt 0:00:08]} 3. e5 {[%emt 0:00:00]} c5 {[%emt 0:00:09]} 4. dxc5 {[%emt 0:00:00]} e6 {[%emt 0:00:08]} 5. a3 {[%emt 0:00:39]} Bxc5 {[%emt 0:02:03]} 6. Bd3 {[%emt 0:03:03]} Nc6 {[%emt 0:05:28]} 7. Nf3 {[%emt 0:01:52]} Nge7 {[%emt 0:11:25]} 8. O-O {[%emt 0:02:33]} Ng6 {[%emt 0:03:51]} 9. b4 {[%emt 0:01:50]} Bb6 {[%emt 0:10:03]} 10. Bb2 {[%emt 0:02:47]} O-O {[%emt 0:01:50]} 11. Re1 {[%emt 0:12:05]} Bd7 {[%emt 0:06:38]} 12. Nbd2 {[%emt 0:03:09]} Rc8 {[%emt 0:06:44]} 13. c4 {[%emt 0:06:34]} Nf4 {[%emt 0:08:11]} 14. Bf1 {[%emt 0:02:37]} dxc4 {[%emt 0:01:07]} 15. Nxc4 {[%emt 0:02:52]} Bc7 {[%emt 0:03:16]} 16. g3 {[%emt 0:06:03]} Nd5 {[%emt 0:01:38]} 17. Bd3 {[%emt 0:01:14]} h6 {[%emt 0:05:16]} 18. Qe2 {[%emt 0:04:41]} g6 {[%emt 0:01:06]} 19. Bc1 {[%emt 0:01:58]} Kg7 {[%emt 0:00:30]} 20. Bb2 {[%emt 0:03:11]} Nce7 {[%emt 0:05:13]} 21. Nd6 {[%emt 0:01:51]} Rb8 {[%emt 0:00:02]} 22. Rad1 {[%emt 0:02:07]} a6 {[%emt 0:01:32]} 23. Nd2 {[%emt 0:04:02]} Bc6 {[%emt 0:01:38]} 24. N2e4 {[%emt 0:01:44]} Kh7 {[%emt 0:04:00]} 25. h4 {[%emt 0:03:32]} Nf5 {[%emt 0:00:55]} 26. Nc4 {[%emt 0:03:47]} b5 {[%emt 0:02:01]} 27. Ncd2 {[%emt 0:06:06]} Bb6 {[%emt 0:04:08]} 28. Nb3 {[%emt 0:01:33]} Qe7 {[%emt 0:03:24]} 29. Kh2 {[%emt 0:05:30]} Rfd8 {[%emt 0:02:44]} 30. Nf6+ {[%emt 0:00:29]} Nxf6 {[%emt 0:01:04]} 31. exf6 {[%emt 0:00:07]} Qb7 {[%emt 0:00:43]} 32. Qf1 {[%emt 0:03:59]} Bf3 {[%emt 0:01:45]} 33. Be2 {[%emt 0:01:04]} Bd5 {[%emt 0:01:39]} 34. Nc1 {[%emt 0:01:32]} h5 {[%emt 0:00:27]} 35. Nd3 {[%emt 0:00:50]} Rbc8 {[%emt 0:02:06]} 36. Rc1 {[%emt 0:01:15]} Nd4 {[%emt 0:00:47]} 37. Nf4 {[%emt 0:02:30]} Bc4 {[%emt 0:01:40]} 38. Bxd4 {[%emt 0:02:00]} Rxd4 {[%emt 0:00:36]} 39. Bxc4 {[%emt 0:00:26]} Rdxc4 {[%emt 0:00:46]} 40. Rxc4 {[%emt 0:00:00]} Rxc4 {[%emt 0:00:45]} 41. Qd3 {[%emt 0:09:59]} Qc6 {[%emt 0:12:09]} 42. Rxe6 {[%emt 0:04:35]} Qc8 {[%emt 0:05:47]} 43. Rxb6 {[%emt 0:07:29]} Rc1 {[%emt 0:02:11]} 44. Rd6 {[%emt 0:02:15]} Ra1 {[%emt 0:01:47]} 45. Rd7 {[%emt 0:01:36]} Qa8 {[%emt 0:00:41]} 46. Qxg6+ {[%emt 0:00:14]} 1-0